{"text_format":"1","workbook":"xlsx","n_sheets":1,"sheets":["Intro"],"not_rendered":{"charts":0,"images":1,"macros":0,"external_links":0,"defined_names":1,"comments":0,"pivot_tables":0},"unopened":[],"bounds":{"document_bytes":16777216,"sheet_cells":100000,"rows_first":2000,"rows_last":500,"rows_between":2000,"halvings":0,"cell_chars":16384,"cell_head_chars":4096},"cells_cut":0,"cells_raw":0,"read":"whole","date_system":"1900"}

{"sheet":"Intro","index":0,"n_rows":39,"n_cols":11,"rows_kept":39,"cut":false,"hidden":false,"merged":[[1,0,1,1],[17,1,17,3],[10,1,10,5],[25,1,25,3],[25,5,25,8],[15,5,15,7],[16,5,16,7],[28,1,28,3],[28,5,28,8],[26,1,26,3],[26,5,26,8],[31,5,31,8],[27,1,27,3],[27,5,27,8],[30,1,30,3],[30,5,30,8],[31,1,31,3],[38,1,38,3],[38,5,38,8],[34,5,34,8],[36,1,36,3],[36,5,36,8],[37,1,37,3],[37,5,37,8],[21,9,21,11],[33,1,33,3],[33,5,33,8],[35,1,35,3],[35,5,35,8],[22,5,22,8],[23,5,23,8],[24,5,24,8],[29,5,29,8],[32,5,32,8],[23,1,23,3],[24,1,24,3],[29,1,29,3],[32,1,32,3],[22,1,22,3],[34,1,34,3]]}
["BIM manual - tjekliste"]
[{"$f":"NOW()","v":"2021-06-22T09:54:00.020"}]
[]
[]
[]
[]
[null,"Spæncom - BIM leverance /projektgranskning"]
[null,"Udarbejdet af: Kim Schmeltz - BIM manager."]
[]
[null,"Version 1.1"]
[null,"Dette leveranceskema er oprettet for at give et overblik over BIM-leverancer fra kunden.",null,null,null,null,null,"Check cell"]
[null,"Sags nr:",null,null,null,null,null,"Justerbar celle / dropdown "]
[null,null,null,"BIM - betingelser:"]
[null,null,null,"Projekteringsmodel:",null,{"$f":"IF(E23 = \"Ja\", \"Modelbaseret ( BIM)\", \"Traditionel projektering\")","v":"Modelbaseret ( BIM)"}]
[null,null,null,"Bips modeller:",null,{"$f":"F20&\" - \"&F19","v":"3R - stabiliserende / 4L ikke stabiliserende  - Bips model slapt armeret"},null,{"$f":"H20&\" - \"&H19","v":"4L - Bips model strengbeton"}]
[null,null,null,"Sags navn:"]
[null,null,null,"Projektleder:"]
[]
[null,"Toleranceklasse",null,"Konsekvensklasse",null,"Bips model slapt armeret",null,"Bips model strengbeton"]
[null,"Blank",null,"Blank",null,"3R - stabiliserende / 4L ikke stabiliserende ",null,"4L"]
[]
[null,"Afklaring inden opstart:",null,null,null,"Bemærkning ift. ydelse",null,null,null,"Ok ved granskning"]
[null,"1) Udleveres den digitale bygningsmodel, og må den bruges?",null,null,"Ja",{"$f":"IF(E23 = \"Ja\", \"Modellen skal udleveres som IFC model ift. Spæncoms BIM ydelses- og kravspecifikation.\",\"Hvis nej, bedes udfyldes.\")","v":"Modellen skal udleveres som IFC model ift. Spæncoms BIM ydelses- og kravspecifikation."},null,null,null,"Nej",{"$f":"IF(J23=\"Ja\",1,0)","v":0}]
[null,"2) Er den digitale bygningsmodel gældende for projektering iht. bips modellen?",null,null,"Ja",{"$f":"IF(E24 = \"Ja\", \"Modellen skal overholde krav til informationsniveau iht. Spæncoms BIM ydelses- og kravspecifikation fx DIKON 325. \",\"Hvis nej, bedes udfyldes.\")","v":"Modellen skal overholde krav til informationsniveau iht. Spæncoms BIM ydelses- og kravspecifikation fx DIKON 325. "},null,null,null,"Nej",{"$f":"IF(J24=\"Ja\",1,0)","v":0}]
[null,"2.1) Indeholder modellen vægge?",null,null,"Ja",{"$f":"IF(E25 = \"Ja\", \"Vægge skal modelleres i endelig fastlagt geometri, dvs. endelige element koter uden understopning, og delinger iht. bips modellen.\",\"Hvis nej, bedes udfyldes.\")","v":"Vægge skal modelleres i endelig fastlagt geometri, dvs. endelige element koter uden understopning, og delinger iht. bips modellen."},null,null,null,"Nej",0]
[null,"2.1.1 Vægudformning: Er væggene modelleret med skørt?",null,null,"Ja",{"$f":"IF(E26 = \"Ja\", \"Skørt skal udføres som en udsparing, dvs. at skørtet må ikke udføres som et separat objekt.\",\"Hvis nej, bedes udfyldes.\")","v":"Skørt skal udføres som en udsparing, dvs. at skørtet må ikke udføres som et separat objekt."},null,null,null,"Nej",{"$f":"IF(J26=\"Ja\",1,0)","v":0}]
[null,"2.1.2 Vægudformning: Er væggene modelleret med konsoller?",null,null,"Ja",{"$f":"IF(E27 = \"Ja\", \"Skal overholde krav til informationsniveau iht. Spæncoms BIM ydelses- og kravspecifikation fx DIKON 325.\",\"Hvis nej, bedes udfyldes.\")","v":"Skal overholde krav til informationsniveau iht. Spæncoms BIM ydelses- og kravspecifikation fx DIKON 325."},null,null,null,"Nej",0]
[null,"2.1.3 Vægudformning: Er væggene modelleret med false?",null,null,"Ja",{"$f":"IF(E28 = \"Ja\", \"Skal overholde krav til informationsniveau iht. Spæncoms BIM ydelses- og kravspecifikation fx DIKON 325.\",\"Hvis nej, bedes udfyldes.\")","v":"Skal overholde krav til informationsniveau iht. Spæncoms BIM ydelses- og kravspecifikation fx DIKON 325."},null,null,null,"Nej",0]
[null,"2.1.4 Vægudformning: Er korrugeret rør modelleret i væggene med korrekt placering og dimension?",null,null,"Ja",{"$f":"IF(E29 = \"Ja\", \"Skal overholde krav til informationsniveau iht. Spæncoms BIM ydelses- og kravspecifikation fx DIKON 325.\",\"Hvis nej, bedes udfyldes.\")","v":"Skal overholde krav til informationsniveau iht. Spæncoms BIM ydelses- og kravspecifikation fx DIKON 325."},null,null,null,"Nej",0]
[null,"2.2) Indeholder modellen søjler?",null,null,"Ja",{"$f":"IF(E30 = \"Ja\", \"Søjler skal modelleres i endelig fastlagt geometri, dvs. endelige element koter uden understopning.\",\"Hvis nej, bedes udfyldes.\")","v":"Søjler skal modelleres i endelig fastlagt geometri, dvs. endelige element koter uden understopning."},null,null,null,"Nej",0]
[null,"2.2.1 Søjleudformning: Er søjlerne modelleret med konsoller?",null,null,"Ja",{"$f":"IF(E31 = \"Ja\", \"Skal overholde krav til informationsniveau iht. Spæncoms BIM ydelses- og kravspecifikation fx DIKON 325.\",\"Hvis nej, bedes udfyldes.\")","v":"Skal overholde krav til informationsniveau iht. Spæncoms BIM ydelses- og kravspecifikation fx DIKON 325."},null,null,null,"Nej",0]
[null,"2.2.1 Søjleudformning: Er korrugeret rør modelleret i søjlerne med korrekt placering og dimension?",null,null,"Ja",{"$f":"IF(E32 = \"Ja\", \"Skal overholde krav til informationsniveau iht. Spæncoms BIM ydelses- og kravspecifikation fx DIKON 325.\",\"Hvis nej, bedes udfyldes.\")","v":"Skal overholde krav til informationsniveau iht. Spæncoms BIM ydelses- og kravspecifikation fx DIKON 325."},null,null,null,"Nej",{"$f":"IF(J32=\"Ja\",1,0)","v":0}]
[null,"2.3) Indeholder modellen bjælker?",null,null,"Ja",{"$f":"IF(E33 = \"Ja\", \"Bjælker skal modelleres i endelig fastlagt geometri, dvs. endelige element koter, længder, konsoller, huller, delinger.\",\"Hvis nej, bedes udfyldes.\")","v":"Bjælker skal modelleres i endelig fastlagt geometri, dvs. endelige element koter, længder, konsoller, huller, delinger."},null,null,null,"Nej",0]
[null,"3) Kan huller for vinduer og døre udtrækkes fra konstruktionsmodellen som også er retvisende?",null,null,"Ja",{"$f":"IF(E34 = \"Ja\", \"IFC model fra konstruktion indeholder koordineret huller for vinduer, porte og døre og er gældende.\",\"Traditionel materiale i 2D dwg samt opstalter skal fremsendes.\")","v":"IFC model fra konstruktion indeholder koordineret huller for vinduer, porte og døre og er gældende."},null,null,null,"Nej",0]
[null,"4) Udleveres EL projektet som modelbaseret?",null,null,"Ja",{"$f":"IF(E35 = \"Ja\", \"IFC model med modelleret El dåser udleveres. Dåserne skal have indeholdt parameter vedr. henvisning til type og udførsel.\",\"Traditionel materiale i 2D dwg samt opstalter skal fremsendes.\")","v":"IFC model med modelleret El dåser udleveres. Dåserne skal have indeholdt parameter vedr. henvisning til type og udførsel."},null,null,null,"Nej",{"$f":"IF(J35=\"Ja\",1,0)","v":0}]
[null,"5) Fremgår alle MEP gennemføringer, recess osv. i konstruktionsmodellen?",null,null,"Ja",{"$f":"IF(E36 = \"Ja\", \"IFC model fra konstruktion indeholder gennemføring >ø150.\",\"Traditionel materiale i 2D dwg samt opstalter skal fremsendes.\")","v":"IFC model fra konstruktion indeholder gennemføring >ø150."},null,null,null,"Nej",0]
[null,"6) Fremsendes elementer til gennemsyn digitalt, dvs. i IFC format?",null,null,"Ja",{"$f":"IF(E37 = \"Ja\", \"IFC modeller af de enkelte elementer fremsendes til gennemsyn uden 2D elementtegninger.\",\"Traditionel materiale i 2D pdf fremsendes.\")","v":"IFC modeller af de enkelte elementer fremsendes til gennemsyn uden 2D elementtegninger."},null,null,null,"Nej",0]
[null,"7) Skal der benyttes specifikke klassifikationer som fx BIM7AA, CCS, osv.?",null,null,"Ja",{"$f":"IF(E38 = \"Ja\", \"Skal præciseres af rådgiver.\",\"Hvis nej, bedes udfyldes.\")","v":"Skal præciseres af rådgiver."},null,null,null,"Nej",0]
[null,"8) Skal der afleveres en endelig IFC model ved afslutning af projekt ",null,null,"Ja",{"$f":"IF(E39 = \"Ja\", \"IFC model udleveres.\",\"Traditionel materiale i 2D pdf fremsendes.\")","v":"IFC model udleveres."},null,null,null,"Nej",0]